fUSD/lending_fUSD_20250322
["ID","MTS","AMOUNT","RATE_DAILY","PERIOD"]
[356522083,1742608246239,-150.0,0.00046375,2]
[356522084,1742608246249,-150.0,0.00046412,2]
[356522085,1742608246258,-19.17763271,0.00046506,2]
[356522105,1742609432140,-196.34,0.00026849,2]
[356522106,1742609432151,-153.46,0.000335,31]
[356522107,1742609432161,-235.060001,0.00034603,2]
[356522108,1742609432172,-264.939999,0.00034603,2]
[356522109,1742609432181,-153.46,0.000398,31]
[356522110,1742609432191,-153.46,0.000398,31]
[356522111,1742609432200,-65.59000098,0.00041,14]
[356522112,1742609432555,-102.40999902,0.00041,14]
[356522113,1742609432565,-263.41,0.00042,120]
[356522114,1742609432574,-320.63,0.00043118,2]
[356522115,1742609432583,-168.0,0.00043151,90]
[356522116,1742609432592,-57.28050001,0.000438,2]
[356522117,1742609432603,-281.23001809,0.000438,2]
[356522118,1742609432618,-668.7590607,0.000438,2]
[356522119,1742609432627,-154.75163145,0.00043945,120]
[356522120,1742609432636,-154.75163145,0.00044521,120]
[356522121,1742609432645,-150.0,0.00044804,2]
[356522122,1742609432655,-2359.99,0.000449,2]
[356522123,1742609432664,-207.58500578,0.000449,10]
[356522124,1742609432673,-450.57743677,0.00045,120]
[356522126,1742609432682,-371.63406358,0.00045,120]
[356522128,1742609432694,-1328.09,0.00045,120]
[356522130,1742609432704,-4312.9832329,0.00045,120]
[356522134,1742609432731,-274.94270352,0.00045,120]
[356522136,1742609432740,-855.13063381,0.00045,120]
[356522138,1742609432750,-166.64,0.00045047,2]
[356522140,1742609432759,-1000.0,0.00045057,2]
[356522142,1742609432768,-154.75163145,0.00045123,120]
[356522144,1742609432778,-211.22,0.00045205,2]
[356522146,1742609432787,-4270.77,0.00045228,2]
[356522148,1742609432796,-159.97,0.00045244,120]
[356522150,1742609432806,-168.0,0.00045308,90]
[356522153,1742609432815,-250.0,0.00045368,2]
[356522156,1742609432824,-320.63,0.00045382,2]
[356522159,1742609432833,-150.0,0.00045419,4]
[356522162,1742609432842,-7921.85,0.00045419,2]
[356522164,1742609432851,-161.08,0.00045455,2]
[356522166,1742609432861,-153.0,0.00045575,2]
[356522168,1742609432870,-1040.44658638,0.00045576,10]
[356522170,1742609432880,-1131.53793578,0.00045576,10]
[356522172,1742609432893,-154.75163145,0.00045699,120]
[356522174,1742609432903,-221.303,0.00045904,75]
[356522176,1742609432912,-5427.0,0.00046,120]
[356522177,1742609432921,-150.0,0.00046001,2]
[356522178,1742609432932,-153.46,0.000461,39]
[356522179,1742609432941,-153.46,0.000461,39]
[356522180,1742609432950,-743.63967625,0.00046275,30]
[356522181,1742609432960,-150.0,0.00046308,2]
[356522182,1742609432969,-150.0,0.00046321,2]
[356522183,1742609432979,-2015.5467,0.00046342,3]
[356522184,1742609432989,-302.0,0.00046347,2]
[356522185,1742609432998,-161.08,0.00046364,2]
[356522186,1742609433008,-190.62978259,0.00046375,23]
[356522187,1742609433017,-14763.1585,0.00046375,2]
[356522188,1742609433026,-750.04895243,0.00046379,15]
[356522189,1742609433036,-150.0,0.00046409,2]
[356522190,1742609433046,-150.0,0.00046427,2]
[356522191,1742609433056,-150.0,0.00046442,2]
[356522192,1742609433065,-176.6635269,0.00046456,2]
[356522193,1742609433075,-1101.31666798,0.00046463,14]
[356522194,1742609433085,-208.57050515,0.00046465,15]
[356522195,1742609433095,-2500.0,0.00046465,2]
[356522196,1742609433105,-150.0,0.00046466,2]
[356522197,1742609433114,-171.41391884,0.00046469,28]
[356522198,1742609433124,-157.90967058,0.00046475,24]
[356522199,1742609433133,-765.63659928,0.00046475,18]
[356522200,1742609433143,-28238.84784228,0.00046475,120]
[356522201,1742609433155,-6650.6765,0.00046475,120]
[356522202,1742609433167,-7382.376725,0.00046475,120]
[356522203,1742609433179,-6127.228,0.00046475,120]
[356522204,1742609433190,-5695.5,0.00046475,120]
[356522205,1742609433206,-3402.69683348,0.00046475,120]
[356522206,1742609433217,-645.64255357,0.00046475,120]
[356522207,1742609433233,-914.46171974,0.00046475,120]
[356522208,1742609433244,-3504.53241457,0.00046475,120]
[356522209,1742609433256,-2545.47089793,0.00046475,120]
[356522210,1742609433271,-3048.64230064,0.00046475,120]
[356522211,1742609433282,-574.97125657,0.00046475,120]
[356522213,1742609438397,-20156.95295622,0.00046475,120]
[356522214,1742609438412,-2445.61122344,0.00046475,120]
[356522223,1742609440485,-475.84201211,0.00045571,2]
[356522224,1742609440535,-315.32374312,0.00045571,2]
[356522225,1742609440549,-663.54424477,0.00045571,2]
[356522226,1742609440562,-1686.81287656,0.00046475,120]
[356522227,1742609440573,-150.0,0.00046479,2]
[356522228,1742609440585,-1000.0,0.0004649,14]
[356522229,1742609440597,-130.82236729,0.00046506,2]
[356522230,1742609440609,-150.0,0.00046511,2]
[356522231,1742609440620,-1000.0,0.00046512,14]
[356522232,1742609440632,-500.0,0.00046513,120]
[356522233,1742609440643,-500.0,0.00046513,120]
[356522234,1742609440655,-505.0,0.00046513,120]
[356522235,1742609440667,-150.0,0.00046523,2]
[356522236,1742609440679,-150.0,0.00046527,2]
[356522237,1742609440691,-150.0,0.00046548,30]
[356522239,1742609440703,-150.0,0.00046548,30]
[356522240,1742609440715,-150.0,0.00046548,30]
[356522241,1742609440727,-150.0,0.00046548,30]
[356522242,1742609440740,-750.04895236,0.00046548,15]
[356522243,1742609440751,-8392.32895469,0.00046555,3]
[356522252,1742609446021,-153.0,0.00045575,2]
[356522253,1742609446031,-625.23275301,0.00046555,3]
[356522260,1742609703443,2500.0,0.00031314,30]
[356522262,1742610314798,29714.76088584,0.00031316,30]
[356522263,1742610328061,5852.34217041,0.00031316,30]
[356522270,1742610356428,626.30797499,0.00031316,30]
[356522279,1742610474416,6653.0,0.0002,2]
[356522280,1742610511634,250.94969884,9.828e-05,2]
[356522281,1742610513046,4629.17588036,0.00031316,60]
[356522282,1742610513639,1463.25709272,0.00031316,120]
[356522317,1742610632322,-159.62,0.00026849,2]
[356522318,1742610632332,-275.39,0.00028,2]
[356522319,1742610632342,-1921.66968722,0.0003121,2]
[356522320,1742610632352,-310.0,0.00031314,30]
[356522321,1742610632362,-150.59233749,0.00031316,7]
[356522322,1742610632371,-159.62,0.00034716,2]
[356522323,1742610632381,-207.58500578,0.000349,7]
[356522324,1742610632390,-6.07292606,0.00035,4]
[356522325,1742610632401,-325.11200482,0.00035,4]
[356522326,1742610632430,-1191.4548924,0.00035,4]
[356522327,1742610632441,-6609.51976328,0.0003511,30]
[356522328,1742610632450,-1212.13683251,0.00039,120]
[356522329,1742610632459,-285.82,0.00039809,2]
[356522330,1742610632468,-207.58500578,0.00039809,8]
[356522331,1742610632477,-204.25598387,0.0004,120]
[356522332,1742610632487,-168.0,0.00041,14]
[356522333,1742610632496,-207.82352726,0.00041,30]
[356522334,1742610632505,-300.74261768,0.00041,120]
[356522335,1742610632515,-603.78002841,0.00041999,120]
[356522336,1742610632524,-313.49273026,0.00042,120]
[356522337,1742610632533,-150.72503103,0.000425,30]
[356522338,1742610632542,-159.62,0.00042583,2]
[356522339,1742610632552,-432.0,0.0004326,2]
[356522340,1742610632565,-299.95,0.00043344,2]
[356522341,1742610632574,-186.74637967,0.00044,120]
[356522342,1742610632584,-2500.0,0.000447,8]
[356522343,1742610632594,-450.0,0.00044718,4]
[356522344,1742610632603,-207.58500578,0.00044718,10]
[356522345,1742610632612,-9684.0,0.000448,2]
[356522346,1742610632622,-436.56813718,0.000449,10]
[356522347,1742610632631,-150.0,0.0004499,2]
[356522348,1742610632641,-600.71764552,0.00045,120]
[356522349,1742610632651,-1000.0,0.00045269,2]
[356522350,1742610632661,-160.57,0.00045493,2]
[356522351,1742610632670,-153.0,0.0004553,2]
[356522352,1742610632681,-160.0,0.00045572,120]
[356522353,1742610632691,-250.0,0.00045574,2]
[356522354,1742610632700,-299.95,0.00045608,2]
[356522355,1742610632711,-160.57,0.00045752,2]
[356522356,1742610632720,-150.99,0.00045752,2]
[356522357,1742610632730,-6327.14,0.00045752,2]
[356522358,1742610632739,-617.81,0.00045752,2]
[356522359,1742610632749,-350.0,0.00045951,2]
[356522360,1742610632758,-174.44624616,0.00046,120]
[356522361,1742610632768,-160.57,0.00046012,2]
[356522362,1742610632777,-150.0,0.00046192,2]
[356522363,1742610632787,-350.0,0.00046238,2]
[356522364,1742610632796,-160.57,0.00046272,2]
[356522365,1742610632808,-706.66917185,0.00046275,30]
[356522366,1742610632817,-274.46244612,0.00046307,14]
[356522367,1742610632826,-151.82491496,0.0004633,14]
[356522368,1742610632836,-2001.9719,0.00046342,3]
[356522369,1742610632845,-2000.0,0.00046342,3]
[356522370,1742610632855,-2500.0,0.00046365,8]
[356522371,1742610632864,-164.51371916,0.00046375,120]
[356522372,1742610632873,-616.66229985,0.00046432,15]
[356522373,1742610632882,-150.0,0.00046433,2]
[356522374,1742610632892,-556.42,0.00046444,5]
[356522375,1742610632901,-556.42,0.00046444,5]
[356522376,1742610632910,-556.42,0.00046444,5]
[356522377,1742610632919,-500.0,0.00046444,5]
[356522378,1742610632929,-556.42,0.00046444,5]
[356522379,1742610632938,-556.42,0.00046444,5]
[356522380,1742610632947,-556.42,0.00046444,5]
[356522381,1742610632956,-556.42,0.00046444,2]
[356522382,1742610632966,-500.0,0.00046445,5]
[356522383,1742610632975,-1000.0,0.00046451,14]
[356522384,1742610632984,-235.6836,0.00046455,2]
[356522385,1742610632994,-1133.07143486,0.00046464,7]
[356522386,1742610633003,-245.85685364,0.00046464,120]
[356522387,1742610633012,-177.043,0.00046465,77]
[356522388,1742610633022,-1735.66928896,0.00046465,2]
[356522389,1742610633032,-27287.8662,0.00046465,2]
[356522390,1742610633042,-157.90967058,0.00046475,24]
[356522391,1742610633054,-88888.0,0.00046475,120]
[356522392,1742610633302,-5000.0,0.00046475,120]
[356522393,1742610633317,-837.92,0.000465,120]
[356522394,1742610633328,-838.12775598,0.000465,120]
[356522395,1742610633338,-1041.0,0.000465,7]
[356522396,1742610633347,-164.51371916,0.00046529,120]
[356522397,1742610633357,-160.57,0.00046532,2]
[356522398,1742610633366,-302.0,0.00046547,2]
[356522399,1742610633375,-150.0,0.00046548,30]
[356522400,1742610633384,-150.0,0.00046548,30]
[356522401,1742610633393,-150.0,0.00046548,30]
[356522402,1742610633401,-333.55328207,0.00046554,120]
[356522403,1742610633410,-35482.9266951,0.00046555,3]
[356522404,1742610633419,-8143.09778755,0.00046557,38]
[356522405,1742610633429,-10137.9790557,0.00046558,3]
[356522406,1742610633438,-151.53934209,0.0004656,2]
[356522407,1742610633447,-150.0,0.00046564,30]
[356522408,1742610633456,-70251.25452989,0.00046565,3]
[356522410,1742610638349,-377.04186396,0.00046344,2]
[356522486,1742610646815,288.79492003,0.00031316,30]
[356522658,1742611701530,-172.92462719,0.00038,2]
[356522659,1742611738372,-202.45,0.000365,120]
[356522663,1742611831572,-341.7,0.00038,2]
[356522664,1742611831629,-492.37537281,0.00038,2]
[356522665,1742611831647,-328.99270525,0.00042,120]
[356522666,1742611831659,-269.95,0.00043174,2]
[356522667,1742611831668,-500.0,0.00044,120]
[356522668,1742611831678,-500.0,0.000446,120]
[356522669,1742611831687,-150.0,0.00045082,2]
[356522670,1742611831696,-1560.16,0.000451,30]
[356522671,1742611831705,-442.93,0.000451,30]
[356522672,1742611831714,-442.93,0.000451,30]
[356522673,1742611831723,-442.93,0.000451,30]
[356522674,1742611831732,-442.93,0.000451,30]
[356522675,1742611831741,-442.93,0.000451,30]
[356522676,1742611831751,-662.27,0.000451,30]
[356522677,1742611831760,-908.19331059,0.00045236,2]
[356522678,1742611831775,-906.10830268,0.00045236,2]
[356522679,1742611831816,-318.26738673,0.00045236,2]
[356522680,1742611831826,-152.667,0.00045236,2]
[356522681,1742611831835,-645.582,0.00045236,2]
[356522682,1742611831845,-1288.408,0.00045236,2]
[356522683,1742611831855,-575.627,0.00045236,2]
[356522684,1742611831864,-1420.0,0.00045236,2]
[356522685,1742611831875,-1279.092,0.00045236,2]
[356522686,1742611831885,-792.0,0.00045236,2]
[356522687,1742611831895,-912.358,0.00045236,2]
[356522688,1742611831905,-607.541,0.00045236,2]
[356522689,1742611831915,-1438.424,0.00045236,2]
[356522690,1742611831925,-4084.0,0.00045236,2]
[356522691,1742611831935,-277.308,0.00045236,2]
[356522692,1742611831944,-233.0,0.00045236,2]
[356522694,1742611831953,-1024.534,0.00045236,2]
[356522696,1742611831963,-3938.0,0.00045236,2]
[356522698,1742611831972,-161.341,0.00045236,2]
[356522700,1742611831981,-256.626,0.00045236,2]
[356522702,1742611831991,-150.301,0.00045236,2]
[356522704,1742611832000,-155.449,0.00045236,2]
[356522707,1742611832010,-1000.0,0.00045369,2]
[356522710,1742611832019,-269.95,0.00045438,2]
[356522713,1742611832029,-152.08,0.00045488,2]
[356522716,1742611832038,-159.97,0.00045547,120]
[356522719,1742611832048,-250.0,0.00045549,2]
[356522722,1742611832057,-152.08,0.00045715,2]
[356522725,1742611832065,-500.0,0.0004575,120]
[356522728,1742611832074,-207.58500578,0.000459,10]
[356522730,1742611832083,-152.08,0.00045942,2]
[356522732,1742611832092,-500.0,0.00046,120]
[356522733,1742611832101,-1587.0,0.00046,7]
[356522734,1742611832110,-152.08,0.0004617,2]
[356522735,1742611832119,-1580.29008156,0.00046269,2]
[356522736,1742611832130,-605.7,0.00046275,30]
[356522737,1742611832139,-164.51371916,0.00046279,120]
[356522738,1742611832148,-1350.75833266,0.00046279,2]
[356522739,1742611832157,-150.0,0.00046286,2]
[356522740,1742611832166,-187.34,0.0004629,30]
[356522741,1742611832175,-156.12,0.0004629,30]
[356522742,1742611832185,-588.2423456,0.00046297,15]
[356522743,1742611832195,-233.48729745,0.00046299,120]
[356522744,1742611832204,-177.043,0.00046299,76]
[356522745,1742611832214,-1817.56,0.00046299,2]
[356522746,1742611832224,-193.9332259,0.00046299,120]
[356522747,1742611832234,-27772.63502838,0.000463,2]
[356522748,1742611832246,-194476.51538474,0.000463,2]
[356522749,1742611832255,-187.71345468,0.00046379,15]
[356522750,1742611832265,-152.08,0.00046397,2]
[356522751,1742611832275,-605.65,0.00046399,30]
[356522752,1742611832285,-150.0,0.00046437,2]
[356522753,1742611832294,-714.5941593,0.00046455,18]
[356522754,1742611832303,-54134.1362575,0.00046465,3]
[356522755,1742611832312,-588.24234554,0.00046474,15]
[356522756,1742611832322,-176.18439856,0.00046475,24]
[356522757,1742611832332,-88888.0,0.00046475,120]
[356522758,1742611832342,-3866.72401839,0.0004649,3]
[356522759,1742611832351,-812.10117523,0.000465,120]
[356522760,1742611832361,-812.05,0.000465,120]
[356522761,1742611832370,-812.05,0.000465,120]
[356522762,1742611832380,-812.05,0.000465,120]
[356522763,1742611832390,-812.05,0.000465,120]
[356522764,1742611832399,-768.17,0.000465,120]
[356522765,1742611832408,-768.09,0.000465,120]
[356522766,1742611832418,-768.09,0.000465,120]
[356522767,1742611832427,-768.09,0.000465,120]
[356522768,1742611832437,-768.09,0.000465,120]
[356522769,1742611832446,-768.09,0.000465,120]
[356522770,1742611832455,-768.09,0.000465,120]
[356522771,1742611832464,-768.09,0.000465,120]
[356522772,1742611832473,-768.09,0.000465,120]
[356522773,1742611832483,-768.09,0.000465,120]
[356522774,1742611832492,-1009.0,0.000465,7]
[356522775,1742611832502,-400.0,0.000465,16]
[356522776,1742611832511,-3866.72401839,0.00046525,3]
[356522777,1742611832520,-164.51371916,0.00046534,120]
[356522778,1742611832529,-3866.72401839,0.00046535,3]
[356522779,1742611832539,-3866.72401839,0.00046535,3]
[356522780,1742611832548,-7733.44803678,0.00046539,3]
[356522781,1742611832557,-187.71345462,0.00046542,15]
[356522782,1742611832566,-15466.8960736,0.00046544,3]
[356522783,1742611832576,-3866.72401839,0.00046545,3]
[356522784,1742611832585,-3866.72401839,0.00046545,3]
[356522785,1742611832595,-515.0,0.00046545,120]
[356522786,1742611832605,-92801.3764414,0.00046545,3]
[356522787,1742611832614,-150.0,0.00046548,30]
[356522788,1742611832624,-150.0,0.00046548,30]
[356522789,1742611832637,-150.0,0.00046548,30]
[356522790,1742611832646,-150.0,0.00046548,30]
[356522791,1742611832656,-605.65,0.00046549,31]
[356522792,1742611832667,-6023.59766001,0.00046555,3]
[356522793,1742611832676,-1308.0537282,0.00046559,2]
[356522794,1742611832685,-800.68099839,0.00046559,2]
[356522795,1742611832695,-4340.7097899,0.00046559,2]
[356522796,1742611832704,-3610.9672745,0.0004656,2]
[356522797,1742611832714,-2881.2247591,0.0004656,2]
[356522798,1742611832726,-2151.4822437,0.0004656,2]
[356522799,1742611832735,-860.51395143,0.00046564,3]
[356522800,1742611832745,-1088.1490434,0.00046564,2]
[356522801,1742611832755,-868.2443587,0.00046564,2]
[356522802,1742611832765,-648.3396739,0.00046564,2]
[356522803,1742611832775,-428.4349892,0.00046564,2]
[356522804,1742611832784,-208.5303044,0.00046564,2]
[356522805,1742611832793,-150.0,0.00046564,30]
[356522806,1742611832802,-1421.7397283,0.00046565,2]
[356522807,1742611832811,-691.9972128,0.00046565,2]
[356522808,1742611832820,-9465.65346573,0.00046565,3]
[356522809,1742611832829,-150.0,0.0004657,30]
[356522810,1742611832840,-210.05067374,0.00046573,10]
[356522811,1742611832850,-151.66484043,0.00046573,10]
[356522812,1742611832859,-700.0,0.00046574,90]
[356522813,1742611832868,-700.0,0.00046574,90]
[356522814,1742611832877,-700.0,0.00046574,90]
[356522815,1742611832887,-700.0,0.00046574,90]
[356522816,1742611832896,-700.0,0.00046574,90]
[356522817,1742611832905,-700.0,0.00046574,90]
[356522818,1742611832915,-700.0,0.00046574,90]
[356522819,1742611832924,-293.01505645,0.00046574,90]
[356522820,1742611832933,-150.0,0.00046574,120]
[356522821,1742611832943,-999.37,0.00046574,120]
[356522822,1742611832952,-1448.0,0.00046575,7]
[356522823,1742611832961,-500.0,0.00046575,120]
[356522824,1742611832971,-1197.530458,0.00046575,120]
[356522825,1742611832980,-159.543633,0.00046575,120]
[356522826,1742611832990,-158.563688,0.00046575,120]
[356522827,1742611832999,-1550.260704,0.00046575,120]
[356522828,1742611833008,-154.615084,0.00046575,120]
[356522829,1742611833017,-177.418511,0.00046575,120]
[356522830,1742611833027,-271.366059,0.00046575,120]
[356522831,1742611833037,-222.502463,0.00046575,120]
[356522832,1742611833048,-160.184481,0.00046575,120]
[356522833,1742611833058,-153.933385,0.00046575,120]
[356522834,1742611833068,-154.615083,0.00046575,120]
[356522835,1742611833079,-158.513571,0.00046575,120]
[356522836,1742611833088,-271.366056,0.00046575,120]
[356522837,1742611833098,-500.0,0.00046575,2]
[356522838,1742611833108,-512.6718258,0.00046575,120]
[356522839,1742611833117,-229.11058819,0.00046575,120]
[356522840,1742611833127,-154.615083,0.00046575,120]
[356522841,1742611833138,-177.418509,0.00046575,120]
[356522842,1742611833147,-500.0,0.00046575,2]
[356522843,1742611833157,-500.0,0.00046575,120]
[356522844,1742611833168,-271.366056,0.00046575,120]
[356522845,1742611833178,-222.502464,0.00046575,120]
[356522846,1742611833188,-484.23506802,0.00046575,16]
[356522847,1742611833197,-500.0,0.00046575,120]
[356522848,1742611833206,-502.05317924,0.00046575,120]
[356522849,1742611833215,-501.61994803,0.00046575,120]
[356522850,1742611833225,-500.0,0.00046575,120]
[356522851,1742611833234,-500.0,0.00046575,5]
[356522852,1742611833243,-502.90580719,0.00046575,120]
[356522853,1742611833252,-500.0,0.00046575,120]
[356522854,1742611833262,-500.0,0.00046575,2]
[356522855,1742611833272,-500.0,0.00046575,3]
[356522856,1742611833281,-501.88161605,0.00046575,120]
[356522857,1742611833290,-500.0,0.00046575,120]
[356522858,1742611833299,-502.94500072,0.00046575,120]
[356522859,1742611833309,-154.615083,0.00046575,120]
[356522860,1742611833319,-541.28701927,0.00046575,120]
[356522861,1742611833328,-574.75148971,0.00046575,120]
[356522862,1742611833337,-533.82167075,0.00046575,45]
[356522863,1742611833347,-177.418508,0.00046575,120]
[356522864,1742611833357,-593.64907389,0.00046575,120]
[356522865,1742611833366,-500.0,0.00046575,120]
[356522866,1742611833376,-500.0,0.00046575,120]
[356522867,1742611833385,-500.0,0.00046575,120]
[356522868,1742611833395,-557.29844356,0.00046575,120]
[356522869,1742611833404,-500.0,0.00046575,120]
[356522870,1742611833413,-1270.71,0.00046575,120]
[356522871,1742611833423,-517.86,0.00046575,120]
[356522872,1742611833432,-500.0,0.00046575,120]
[356522873,1742611833441,-500.0,0.00046575,120]
[356522874,1742611833451,-500.0,0.00046575,120]
[356522875,1742611833460,-500.0,0.00046575,120]
[356522876,1742611833470,-500.0,0.00046575,120]
[356522877,1742611833479,-500.0,0.00046575,120]
[356522878,1742611833489,-500.0,0.00046575,120]
[356522879,1742611833499,-500.0,0.00046575,120]
[356522880,1742611833717,-500.0,0.00046575,120]
[356522881,1742611833735,-500.0,0.00046575,120]
[356522882,1742611833746,-554.85,0.00046575,120]
[356522883,1742611833756,-500.0,0.00046575,120]
[356522884,1742611833765,-529.36748161,0.00046575,120]
[356522885,1742611833775,-271.366056,0.00046575,120]
[356522886,1742611833784,-500.0,0.00046575,120]
[356522887,1742611833794,-501.48772139,0.00046575,120]
[356522888,1742611833804,-500.0,0.00046575,120]
[356522889,1742611833813,-500.0,0.00046575,120]
[356522890,1742611833823,-500.0,0.00046575,120]
[356522891,1742611833832,-500.0,0.00046575,120]
[356522892,1742611833841,-500.0,0.00046575,120]
[356522893,1742611833851,-500.0,0.00046575,120]
[356522894,1742611833860,-500.0,0.00046575,120]
[356522895,1742611833870,-500.0,0.00046575,120]
[356522896,1742611833879,-500.0,0.00046575,120]
[356522897,1742611833889,-500.0,0.00046575,120]
[356522898,1742611833900,-500.0,0.00046575,120]
[356522899,1742611833910,-500.0,0.00046575,120]
[356522900,1742611833919,-222.502463,0.00046575,120]
[356522901,1742611833928,-500.0,0.00046575,120]
[356522902,1742611833938,-601.47,0.00046575,120]
[356522903,1742611833948,-500.0,0.00046575,120]
[356522904,1742611833957,-500.0,0.00046575,120]
[356522905,1742611833967,-500.0,0.00046575,120]
[356522906,1742611833976,-500.0,0.00046575,20]
[356522907,1742611833986,-500.0,0.00046575,120]
[356522908,1742611833996,-500.0,0.00046575,120]
[356522909,1742611834006,-785.48,0.00046575,120]
[356522910,1742611834015,-923.46,0.00046575,120]
[356522911,1742611834025,-500.0,0.00046575,120]
[356522912,1742611834034,-1117.19,0.00046575,120]
[356522913,1742611834044,-560.12,0.00046575,120]
[356522914,1742611834054,-500.0,0.00046575,120]
[356522915,1742611834063,-500.0,0.00046575,120]
[356522916,1742611834074,-500.8143795,0.00046575,120]
[356522917,1742611834084,-928.89,0.00046575,120]
[356522918,1742611834093,-500.0,0.00046575,120]
[356522919,1742611834103,-500.0,0.00046575,120]
[356522920,1742611834112,-574.40050468,0.00046575,120]
[356522921,1742611834122,-500.0,0.00046575,120]
[356522922,1742611834131,-500.0,0.00046575,120]
[356522923,1742611834141,-500.0,0.00046575,120]
[356522924,1742611834150,-500.0,0.00046575,120]
[356522925,1742611834160,-647.99592927,0.00046575,120]
[356522926,1742611834169,-500.0,0.00046575,120]
[356522927,1742611834178,-500.0,0.00046575,120]
[356522928,1742611834188,-500.0,0.00046575,120]
[356522929,1742611834198,-797.61,0.00046575,120]
[356522930,1742611834207,-205.46544104,0.00046575,120]
[356522931,1742611834216,-500.0,0.00046575,120]
[356522932,1742611834226,-229.0647657,0.00046575,120]
[356522933,1742611834235,-500.0,0.00046575,120]
[356522934,1742611834246,-500.0,0.00046575,120]
[356522935,1742611834256,-500.0,0.00046575,120]
[356522936,1742611834266,-500.0,0.00046575,120]
[356522937,1742611834275,-500.0,0.00046575,120]
[356522938,1742611834286,-534.52956549,0.00046575,120]
[356522939,1742611834295,-500.0,0.00046575,120]
[356522940,1742611834305,-500.0,0.00046575,120]
[356522941,1742611834315,-500.0,0.00046575,120]
[356522942,1742611834325,-500.0,0.00046575,120]
[356522943,1742611834335,-1500.0,0.00046575,120]
[356522944,1742611834346,-500.0,0.00046575,120]
[356522945,1742611834355,-500.0,0.00046575,120]
[356522946,1742611834366,-595.94,0.00046575,120]
[356522947,1742611834375,-500.0,0.00046575,120]
[356522948,1742611834384,-500.0,0.00046575,120]
[356522949,1742611834394,-500.0,0.00046575,120]
[356522950,1742611834403,-500.0,0.00046575,120]
[356522951,1742611834412,-500.0,0.00046575,120]
[356522952,1742611834421,-500.0,0.00046575,120]
[356522953,1742611834430,-529.08,0.00046575,120]
[356522954,1742611834439,-500.0,0.00046575,120]
[356522955,1742611834449,-500.0,0.00046575,120]
[356522956,1742611834458,-731.71,0.00046575,120]
[356522957,1742611834467,-500.0,0.00046575,120]
[356522958,1742611834477,-500.0,0.00046575,120]
[356522959,1742611834486,-500.0,0.00046575,120]
[356522960,1742611834496,-500.0,0.00046575,120]
[356522961,1742611834512,-500.0,0.00046575,120]
[356522962,1742611834521,-500.0,0.00046575,120]
[356522963,1742611834531,-500.0,0.00046575,120]
[356522964,1742611834540,-500.0,0.00046575,120]
[356522965,1742611834549,-500.0,0.00046575,120]
[356522966,1742611834559,-633.4,0.00046575,120]
[356522967,1742611834568,-500.0,0.00046575,120]
[356522968,1742611834578,-500.0,0.00046575,120]
[356522969,1742611834588,-755.42,0.00046575,120]
[356522970,1742611834597,-500.0,0.00046575,120]
[356522971,1742611834606,-500.0,0.00046575,120]
[356522972,1742611834614,-592.08,0.00046575,120]
[356522973,1742611834623,-521.13844441,0.00046575,120]
[356522974,1742611834635,-500.0,0.00046575,120]
[356522975,1742611834644,-500.0,0.00046575,120]
[356522976,1742611834654,-500.0,0.00046575,120]
[356522977,1742611834663,-154.615083,0.00046575,120]